[Event "21st IPCA World Championship 2022"]
[Site "Ashdod"]
[Date "2022.05.13"]
[Round "5.5"]
[White "Lipilin, Ilia"]
[Black "Vardi, Moshe"]
[Result "1-0"]
[ECO "A60"]
[WhiteElo "2198"]
[BlackElo "1631"]
[Annotator "TA"]
[PlyCount "89"]
[EventDate "2022.05.09"]
[EventType "swiss"]
[EventCountry "ISR"]
[SourceTitle "playchess.com"]
[Source "ChessBase"]
[SourceQuality "1"]
[TimeControl "5400+30"]

{[%evp 12,89,81,63,86,45,47,42,54,41,66,77,66,58,68,73,82,77,75,49,118,89,96,0,-7,-314,-317,-303,-319,-318,-271,-309,-252,-276,-195,-166,0,0,93,0,298,229,338,334,398,391,548,541,599,345,750,750,722,713,625,501,662,660,1048,797,1462,1454,1377,1422,1962,1796,2850,2637,2603,2359,5006,1945,29978,29980,29987,29988,29992,29993,29994,29994]} 1. d4 {[%emt 0:00:03][%cal Bd2d4,Bd4d5][%mdl 32]} c5 {[%emt 0:09:51]} 2. d5 {[%emt 0:00:11]} Nf6 {[%emt 0:00:38]} 3. c4 {[%emt 0:00:10]} d6 {[%emt 0:00:34]} 4. Nc3 {[%emt 0:00:11]} e6 {[%emt 0:01:11]} 5. e4 {[%emt 0:00:11]} exd5 {[%emt 0:00:26]} 6. cxd5 {[%emt 0:00:06]} Be7 {[%emt 0:00:19]} 7. Nf3 {[%emt 0:00:23][%cal Bg1f3,Bf3d2,Bd2c4][%mdl 32]} Bg4 {[%emt 0:00:46] A60: Modern Benoni: Early Divergences.} 8. Qa4+ {[%emt 0:00:54]} Nbd7 {[%emt 0:00:56]} 9. Nd2 {[%emt 0:01:47]} a6 {[%emt 0:00:27] [#] White is slightly better.} 10. f3 $146 {[%emt 0:00:10]} ({Predecessor:} 10. h3 b5 11. Qc2 Bh5 12. a4 b4 13. Ne2 Bxe2 14. Bxe2 O-O 15. O-O Qb6 16. b3 {1-0 (28) Malaniuk,V (2509)-Jankowiak,P (1559) Gorzow Wielkopolski 2012}) 10... b5 {[%emt 0:00:45]} 11. Qc2 {[%emt 0:03:14]} Bh5 {[%emt 0:01:06]} 12. a4 $1 {[%emt 0:00:13]} b4 {[%emt 0:00:44]} 13. Nd1 {[%emt 0:00:12]} h6 {[%emt 0:00:56]} 14. Nc4 {[%emt 0:01:32]} O-O {[%emt 0:01:56]} 15. a5 {[%emt 0:01:03]} Re8 {[%emt 0:01:01]} (15... Ne8 $14) 16. Be2 {[%emt 0:00:44]} Bg6 {[%emt 0:09:51][%cal Of6e4]} 17. Nde3 {[%emt 0:14:41]} (17. Qb3 $1 $16) 17... Nxe4 $1 $11 {[%emt 0:03:31]} 18. fxe4 {[%emt 0:00:08][%mdl 8192]} (18. Bd3 $1 $11 Ng5 19. O-O) 18... Bh4+ $19 {[%emt 0:01:03]} 19. Kd1 {[%emt 0:00:18] aiming for Nf5.} (19. g3 Bxe4 20. Bd3 Bxh1 $19) 19... Rxe4 {[%emt 0:00:51]} 20. Qb3 {[%emt 0:01:04]} Qe7 {[%emt 0:02:42]} ({And not} 20... Qf6 21. g3 Bg5 22. Rf1 Qd4+ 23. Ke1 $17) 21. Bd2 {[%emt 0:03:23]} Bg5 {[%emt 0:00:51]} 22. Re1 {[%emt 0:05:25][%cal Bh1e1,Be1f1,Bf1f5][%mdl 32]} Re8 {[%emt 0:02:09] And now ...Ne5 would win.} 23. Bd3 {[%emt 0:04:50] [#]} Bh5+ $2 {[%emt 0:03:27]} (23... Rd4 24. Bxg6 (24. Nf5 $2 Qxe1+ 25. Bxe1 Bxf5 $19) 24... fxg6 25. Nc2 $15) (23... Qf6 $1 $19 {...Rd4 is the strong threat.} 24. Bxe4 Rxe4) 24. Kc2 {[%emt 0:00:37]} Bxe3 {[%emt 0:01:51]} (24... Bg6 $1 $11 {keeps the balance.}) 25. Bxe3 {[%emt 0:01:56]} ({White should play} 25. Rxe3 $16 Rxe3 26. Nxe3 (26. Bxe3 Ne5 $11)) 25... Rg4 {[%emt 0:03:57][%mdl 8192] White now steadily converts the win.} (25... Qh4 $11 {and Black is okay.}) 26. g3 $18 {[%emt 0:01:25][%cal Oe3c5] Strongly threatening Bxc5!} Qf6 {[%emt 0:02:07]} (26... Re4 {keeps fighting.} 27. Bd2 (27. Bg5 Rxe1 28. Bxe7 Rxa1 $17) 27... Nf6 28. Bxe4 Nxe4) 27. Rf1 {[%emt 0:03:44]} Qe7 {[%emt 0:00:37]} 28. Rae1 {[%emt 0:00:42]} Qf8 {[%emt 0:02:38]} (28... Re4 {might work better.} 29. Bxe4 Qxe4+ 30. Qd3 Qe7) 29. Bf4 {[%emt 0:02:01]} Ne5 {[%emt 0:01:08]} 30. Bf5 {[%emt 0:04:09][%cal Rf4e5]} Bg6 $2 {[%emt 0:05:54]} (30... Nxc4 31. Qxc4 Bg6) 31. Bxe5 {[%emt 0:00:24]} Bxf5+ {[%emt 0:05:23]} 32. Rxf5 {[%emt 0:00:16]} dxe5 {[%emt 0:01:52]} 33. Rexe5 {[%emt 0:01:43]} f6 {[%emt 0:01:07]} 34. d6 {[%emt 0:02:25]} Kh7 {[%emt 0:01:21]} 35. Qd3 {[%emt 0:12:31] Rxf6+ would kill now.} Rd4 {[%emt 0:02:45]} 36. Rxf6+ {[%emt 0:00:51]} Rxd3 {[%emt 0:01:07]} 37. Rxf8 {[%emt 0:00:12]} Rxf8 {[%emt 0:01:53]} 38. Kxd3 {[%emt 0:00:14][%mdl 4096] Endgame KRN-KR} Rd8 {[%emt 0:02:06]} 39. Ke4 {[%emt 0:00:14]} b3 {[%emt 0:00:39]} 40. Kd5 {[%emt 0:00:10] Black must now prevent Re7.} Kg6 {[%emt 0:00:03]} 41. Nb6 {[%emt 0:00:17] Threatens to win with Re7.} Kf6 {[%emt 0:00:41]} 42. d7 {[%emt 0:00:09] White mates.} c4 {[%emt 0:00:03]} 43. Re8 {[%emt 0:00:28]} c3 {[%emt 0:00:15]} 44. Rxd8 {[%emt 0:00:11]} c2 {[%emt 0:00:16]} 45. Rc8 {[%emt 0:00:04] Weighted Error Value: White=0.37/Black=0.82} 1-0

[Event "21st IPCA World Championship 2022"]
[Site "Ashdod"]
[Date "2022.05.13"]
[Round "5.6"]
[White "Shapiro, Benny"]
[Black "Valenta, Vit Vaclav"]
[Result "0-1"]
[ECO "E90"]
[WhiteElo "1884"]
[BlackElo "2014"]
[Annotator "TA"]
[PlyCount "97"]
[EventDate "2022.05.09"]
[EventType "swiss"]
[EventCountry "ISR"]
[SourceTitle "playchess.com"]
[Source "ChessBase"]
[SourceQuality "1"]
[TimeControl "5400+30"]

{[%evp 14,97,30,32,41,31,46,27,22,0,0,-30,-28,-58,0,-68,24,-118,-27,-148,34,31,33,0,0,0,0,-35,-16,-70,-81,-78,-70,-70,-50,-55,-53,-64,0,0,0,0,-43,-42,-53,-40,-53,-136,-110,-115,-89,-108,0,0,0,0,0,-378,-366,-331,-230,-557,-552,-1184,-1033,-1261,-1126,-29975,-29976,-29965,-1787,-5760,-5760,-29976,-29977,-29977,-29978,-29976,-29977,-29977,-29977,-29981,-29982,-29982,-29983,-29986]} 1. d4 {[%emt 0:02:10]} Nf6 {[%emt 0:00:09]} 2. c4 {[%emt 0:00:14]} d6 {[%emt 0:00:11]} 3. Nc3 {[%emt 0:00:22]} g6 {[%emt 0:00:24]} 4. e4 {[%emt 0:00:55]} Bg7 {[%emt 0:00:17]} 5. h3 {[%emt 0:00:26]} Nbd7 {[%emt 0:01:01]} 6. Nf3 {[%emt 0:01:21]} e5 {[%emt 0:00:29]} 7. d5 {[%emt 0:00:45]} O-O {[%emt 0:00:56]} 8. Bd3 {[%emt 0:00:36]} a5 {[%emt 0:01:00] E90: King's Indian: Classical: Early deviations and 6 h3.} 9. O-O {[%emt 0:01:13]} Nh5 {[%emt 0:00:11] [#]} 10. a3 $146 {[%emt 0:01:49]} ({Predecessor:} 10. Bg5 f6 11. Be3 Nf4 12. Re1 g5 13. Bf1 b6 14. g3 Ng6 15. Nh2 Nc5 16. Qh5 {½-½ (26) Suseenthiram,R (2002)-Lonnqvist,H (2044) Helsinki 2015}) 10... Nf4 {[%emt 0:00:22] White has an edge.} 11. Bc2 {[%emt 0:00:45]} Nb6 {[%emt 0:01:40]} 12. c5 {[%emt 0:01:58]} dxc5 {[%emt 0:01:02]} 13. Be3 {[%emt 0:00:26]} Nd7 {[%emt 0:00:15]} (13... Nc4 $15) 14. Nb5 {[%emt 0:04:50]} (14. Re1 $11) 14... b6 {[%emt 0:07:03]} (14... c6 $1 $15 15. Nc3 Rb8) 15. d6 {[%emt 0:01:16]} (15. Re1 $11) 15... Ba6 {[%emt 0:04:13]} ({Better is} 15... cxd6 $17 {White must now prevent ...Ba6.} 16. Re1 Ba6) 16. Nxc7 {[%emt 0:03:53] [#]} (16. dxc7 $11 {was the only way to keep the balance.} Qe7 17. Ba4) 16... Bxf1 $2 {[%emt 0:00:26]} (16... Be2 $1 $17 {[%cal Re2d1]} 17. Qd2 Bxf3 18. Bxf4 exf4 19. gxf3 Qg5+ 20. Kh2 Rad8) 17. Qxf1 $14 {[%emt 0:00:23]} Rc8 {[%emt 0:05:39]} 18. g3 {[%emt 0:01:12]} Ne6 {[%emt 0:07:33]} 19. Nxe6 {[%emt 0:03:45]} ({Much weaker is} 19. Nd5 Nd4 20. Ne7+ Kh8 21. Bxd4 cxd4 22. Nxc8 Qxc8 $17) 19... fxe6 {[%emt 0:00:03]} 20. Ng5 {[%emt 0:00:25] aiming for Bb3.} (20. Bg5 $5 {[%cal Rg5d8]} Bf6 21. Bh6 $11) 20... Rf6 $1 {[%emt 0:08:02] Black wants to play ...h6.} 21. h4 {[%emt 0:03:03]} (21. Qe2 $11) 21... h6 $15 {[%emt 0:02:24]} 22. Nh3 {[%emt 0:00:53]} Nb8 {[%emt 0:22:18]} 23. Rd1 $1 {[%emt 0:11:39]} Rc6 {[%emt 0:02:22]} 24. d7 $1 {[%emt 0:01:55]} Rc7 {[%emt 0:06:47]} 25. Ba4 $1 {[%emt 0:01:11]} Rf7 {[%emt 0:02:06]} ({Black should play} 25... Nxd7 $15 26. Qd3 Rf7) 26. Qc4 $11 {[%emt 0:02:38]} Re7 {[%emt 0:02:06][%cal Rb8d7]} 27. Rd6 {[%emt 0:04:33][%cal Oh3g5]} Nxd7 {[%emt 0:02:54]} 28. Rxe6 {[%emt 0:01:03]} Rxe6 {[%emt 0:00:35]} 29. Qxe6+ {[%emt 0:00:20]} Kh7 {[%emt 0:00:01]} 30. Bb3 {[%emt 0:04:40]} (30. Kg2 $15) 30... Nf6 {[%emt 0:05:35]} 31. Qxb6 {[%emt 0:02:34]} Qc8 {[%emt 0:04:25]} 32. Bc4 {[%emt 0:07:00]} Qb7 {[%emt 0:06:24]} (32... Nxe4 $17 {Hoping for ...Rc6.} 33. Kg2 Nf6) 33. Qxa5 {[%emt 0:03:41]} Rd7 {[%emt 0:00:51]} 34. f3 $1 {[%emt 0:06:20]} Rd1+ {[%emt 0:00:58]} 35. Kf2 $2 {[%emt 0:05:13][%mdl 8192]} (35. Kg2 $1 $11) 35... Qxb2+ $19 {[%emt 0:01:00]} 36. Be2 {[%emt 0:00:04]} Rh1 {[%emt 0:00:23] And now ...Rh2+ would win. The board is on fire.} 37. Ng1 $2 {[%emt 0:02:50] [#]} (37. Qd2 {nothing else works.} Rh2+ 38. Kf1 Qa1+ 39. Qd1 Qxa3 40. Bg1 Rxh3 41. Kg2 Rxg3+ 42. Kxg3) 37... Rxg1 $1 {[%emt 0:00:15][%mdl 512]} 38. Kxg1 {[%emt 0:00:52] Qa6 is the strong threat.} (38. Qb5 Rb1) 38... Qxe2 {[%emt 0:00:02]} 39. Bf2 {[%emt 0:01:46]} Qxf3 {[%emt 0:00:10]} 40. Qxc5 {[%emt 0:01:02]} Nxe4 {[%emt 0:00:14]} 41. Qe3 {[%emt 0:00:34]} Qd1+ {[%emt 0:01:52]} (41... Qxf2+ $142 42. Qxf2 Nxf2 43. Kxf2 Bf8 44. Kf3 Kg7 45. Ke4 Kf6 46. a4 Bb4 47. Kf3 Ke6 48. Ke4 Ba5 49. g4 h5 50. Kf3 Kd5 51. Ke3 e4 52. Kf4 Kd4 53. Kg5 e3 54. Kh6 hxg4 55. Kxg6 e2 56. h5 e1=Q 57. Kf7 Qf2+ 58. Kg7 g3 59. h6 g2 60. Kh7 g1=Q 61. Kh8 Qf6+ 62. Kh7 Qgg6#) 42. Kg2 {[%emt 0:00:34]} Qc2 {[%emt 0:00:54]} 43. Qf3 {[%emt 0:00:48]} Nxf2 {[%emt 0:01:38] Black mates.} 44. Qxf2 {[%emt 0:00:05]} Qxf2+ {[%emt 0:00:10]} 45. Kxf2 {[%emt 0:18:58] KB-K3P} Bf8 {[%emt 0:05:40]} 46. a4 {[%emt 0:00:00]} Kg7 {[%emt 0:00:00]} 47. Kf3 {[%emt 0:00:00]} Kf6 {[%emt 0:00:00]} 48. Ke4 {[%emt 0:00:00]} Ke6 {[%emt 0:00:00]} 49. g4 {[%emt 0:00:00] Weighted Error Value: White=0.98/Black=0.40} 0-1

[Event "21st IPCA World Championship 2022"]
[Site "Ashdod"]
[Date "2022.05.13"]
[Round "5.7"]
[White "Alperovich, Asher"]
[Black "Cosic, Radoslav"]
[Result "1-0"]
[ECO "E20"]
[WhiteElo "1865"]
[BlackElo "2003"]
[Annotator "TA"]
[PlyCount "89"]
[EventDate "2022.05.09"]
[EventType "swiss"]
[EventCountry "ISR"]
[SourceTitle "playchess.com"]
[Source "ChessBase"]
[SourceQuality "1"]
[TimeControl "5400+30"]

{[%evp 9,89,-3,32,40,41,23,47,25,56,45,37,37,75,77,76,45,60,44,47,25,86,38,106,80,78,78,70,59,93,52,58,17,15,21,29,0,61,45,35,53,34,8,40,25,58,64,61,53,83,70,68,47,82,70,358,348,377,377,403,410,375,305,301,304,320,298,573,548,722,706,1202,1182,1688,1668,1939,1826,2800,2747,29987,29987,29984,1362]} 1. d4 {[%emt 0:01:41]} Nf6 {[%emt 0:00:25]} 2. c4 {[%emt 0:00:19]} e6 {[%emt 0:00:08]} 3. Nc3 {[%emt 0:00:11]} Bb4 {[%emt 0:00:13]} 4. f3 {[%emt 0:00:19]} O-O {[%emt 0:06:34]} 5. a3 {[%emt 0:00:42]} Be7 {[%emt 0:00:42]} (5... Bxc3+ $5 6. bxc3 d5 $11) 6. e4 {[%emt 0:01:33] E20: Nimzo-Indian: 4 g3 and 4 f3.} d6 {[%emt 0:00:02]} 7. Be3 {[%emt 0:06:01] [#]} Nc6 $146 {[%emt 0:01:14]} ({Predecessor:} 7... e5 8. Bd3 exd4 9. Bxd4 Nc6 10. Nge2 Ne5 11. Bxe5 dxe5 12. Qc2 Be6 13. O-O c6 {½-½ (23) May,P (1795)-Jones,R (1842) Harrogate 2017}) 8. Nge2 {[%emt 0:03:42] White is slightly better.} a6 {[%emt 0:03:43]} 9. Nc1 {[%emt 0:03:55]} e5 {[%emt 0:02:09]} 10. d5 {[%emt 0:02:03]} Nb8 {[%emt 0:00:11]} 11. Be2 {[%emt 0:01:45]} Nh5 {[%emt 0:04:49]} 12. Qd2 {[%emt 0:07:09]} b6 {[%emt 0:07:23]} 13. b4 {[%emt 0:02:51]} Nf4 {[%emt 0:00:17]} 14. O-O {[%emt 0:01:38][%cal Be1g1,Bg1g2,Bg2f2][%mdl 32]} Nd7 {[%emt 0:04:21] [#]} (14... a5 $11 {remains equal.}) 15. Nd3 {[%emt 0:02:01]} (15. Bxf4 exf4 16. Nd3 (16. Qxf4 Bg5 $11) 16... g5 $11) (15. Bd1 $1 $16) 15... g5 {[%emt 0:00:41]} (15... Nxe2+ $14 16. Qxe2 (16. Nxe2 f5 $11) 16... a5) 16. g3 {[%emt 0:01:59]} ({Much weaker is} 16. Bxf4 $6 exf4 17. g3 fxg3 $11) 16... Nxe2+ {[%emt 0:00:25]} 17. Qxe2 {[%emt 0:01:34]} Kh8 {[%emt 0:00:21]} 18. Kg2 {[%emt 0:04:49]} Rg8 {[%emt 0:00:04]} 19. Rh1 {[%emt 0:02:46]} Nf8 {[%emt 0:02:52]} 20. Kf2 {[%emt 0:03:31]} Ng6 {[%emt 0:02:48]} 21. Ke1 {[%emt 0:00:29]} Bd7 {[%emt 0:01:01]} 22. Kd2 {[%emt 0:00:40]} Bf6 {[%emt 0:02:01]} (22... Qf8 $11) 23. c5 {[%emt 0:04:53]} dxc5 {[%emt 0:02:18]} 24. bxc5 {[%emt 0:45:59]} bxc5 {[%emt 0:57:48]} 25. Nxc5 {[%emt 0:00:00]} Bc8 {[%emt 0:00:00]} 26. Rhd1 {[%emt 0:00:00]} Bg7 {[%emt 0:00:00]} 27. Ke1 {[%emt 0:01:30]} Qf6 {[%emt 0:00:00]} 28. Rac1 {[%emt 0:00:00] White is much more active.} Rb8 {[%emt 0:02:00]} 29. Rb1 {[%emt 0:01:00]} Rxb1 {[%emt 0:00:00]} 30. Rxb1 {[%emt 0:00:30]} h6 {[%emt 0:01:00]} 31. Nd3 {[%emt 0:00:30] Pair of Knights!} Nf4 $2 {[%emt 0:00:30][%mdl 8192] This costs Black the game.} 32. gxf4 $18 {[%emt 0:00:30]} exf4 {[%emt 0:00:30]} 33. e5 {[%emt 0:00:00]} Qg6 {[%emt 0:00:00]} 34. Bd4 {[%emt 0:00:00]} Bf5 {[%emt 0:01:00]} 35. Rd1 {[%emt 0:01:30]} ({Weaker is} 35. Ne4 Rd8 36. Rb7 Rxd5 $18) 35... Rb8 {[%emt 0:00:30]} 36. Nf2 {[%emt 0:00:00]} h5 {[%emt 0:00:30]} 37. h3 {[%emt 0:01:00] Inhibits g4.} Rb3 $2 {[%emt 0:00:00]} (37... Re8 {might work better.} 38. Kf1 Kh7) 38. Qc4 Rb2 {[%emt 0:01:00]} 39. Nce4 {[%emt 0:01:00]} Rxf2 {[%emt 0:00:30]} 40. Nxf2 {[%emt 0:00:30]} g4 {[%emt 0:00:30]} 41. hxg4 {[%emt 0:00:00]} hxg4 {[%emt 0:00:30]} 42. fxg4 {[%emt 0:01:00]} Bd7 {[%emt 0:00:30]} 43. Qxc7 {[%emt 0:00:30] Qd8+ would kill now.} Bb5 {[%emt 0:00:30]} 44. Qc8+ {[%emt 0:00:00]} Kh7 {[%emt 0:00:00]} 45. Qf5 {[%emt 0:01:00] Weighted Error Value: White=0.16 (very precise) /Black=0.63} (45. Kd2 $142 Qh6 46. Rh1 Qxh1 47. Nxh1 a5 {[#]} 48. e6 $1 f6 49. e7 f3 50. d6) 1-0

[Event "21st IPCA World Championship 2022"]
[Site "Ashdod"]
[Date "2022.05.13"]
[Round "5.8"]
[White "Oliel, Yehonatan"]
[Black "Srimskov, Elishar"]
[Result "0-1"]
[ECO "E90"]
[WhiteElo "1535"]
[BlackElo "1992"]
[Annotator "TA"]
[PlyCount "128"]
[EventDate "2022.05.09"]
[EventType "swiss"]
[EventCountry "ISR"]
[SourceTitle "playchess.com"]
[Source "ChessBase"]
[SourceQuality "1"]
[TimeControl "5400+30"]

{[%evp 12,128,27,11,30,27,27,14,82,72,97,55,57,50,110,91,118,89,101,96,125,69,74,0,99,82,79,82,98,89,84,58,56,-241,-229,-282,-296,-285,-275,-341,-363,-374,-265,-252,-175,-186,-180,-227,-160,-159,-150,-140,-131,-143,-100,-106,0,0,0,-890,-60,-64,-52,-56,-48,-275,0,-272,-267,-317,-326,-456,-451,-454,-439,-440,-451,-444,-431,-429,-424,-500,-501,-554,-517,-469,-460,-445,-414,-499,-488,-616,-601,-668,-682,-781,-428,-807,-737,-730,-736,-740,-731,-672,-652,-610,-603,-580,-580,-963,-881,-1044,-757,-1662,-1412,-4767,-4627,-2341,-2010]} 1. d4 {[%emt 0:00:06]} Nf6 {[%emt 1:31:00]} 2. Nf3 {[%emt 0:00:42]} g6 {[%emt 0:00:00]} 3. c4 {[%emt 0:01:26]} Bg7 {[%emt 0:00:00]} 4. Nc3 {[%emt 0:01:20]} O-O {[%emt 0:00:00]} 5. e4 {[%emt 0:01:16]} d6 {[%emt 0:00:00]} 6. Be3 {[%emt 0:06:52]} Ng4 {[%emt 0:00:00]} 7. Bf4 {[%emt 0:01:19]} Nd7 {[%emt 0:00:00] E90: King's Indian: Classical: Early deviations and 6 h3.} 8. h3 {[%emt 0:03:03]} Ngf6 {[%emt 0:00:00] [#]} 9. Qd2 $146 {[%emt 0:01:24]} ({Predecessor:} 9. Be2 c5 10. dxc5 Nxc5 11. Qc2 b6 12. Rd1 Qc7 13. Nd5 Nxd5 14. cxd5 Qd7 15. O-O {0-1 (46) Rodriguez,J-Ortiz,N Buenos Aires 1997}) 9... Ne8 {[%emt 0:00:00]} (9... e5 $11 10. dxe5 Nxe5) 10. O-O-O {[%emt 0:03:43]} c6 {[%emt 0:00:00]} 11. Be2 {[%emt 0:09:50]} Qa5 {[%emt 0:00:00]} 12. Kb1 {[%emt 0:05:58]} e5 {[%emt 0:00:00]} (12... a6 $14) 13. Bh6 $16 {[%emt 0:02:24]} Nef6 {[%emt 0:00:00]} 14. g4 {[%emt 0:04:30]} Re8 {[%emt 0:00:00]} 15. Bxg7 {[%emt 0:05:33]} Kxg7 {[%emt 0:00:00]} 16. g5 {[%emt 0:05:58]} ({Better is} 16. Qe3 $16) 16... Nh5 $14 {[%emt 0:00:00]} 17. d5 {[%emt 0:02:06]} (17. Nh2 $16) 17... c5 {[%emt 0:00:00]} (17... Nf4 $11) 18. Ne1 {[%emt 0:02:00]} Nf4 {[%emt 0:08:30]} 19. Nd3 {[%emt 0:00:52]} Nxe2 {[%emt 0:00:00]} 20. Qxe2 {[%emt 0:01:00]} a6 {[%emt 0:00:00]} 21. f4 {[%emt 0:03:43] aiming for h4.} b5 {[%emt 0:00:00][%cal Bb7b5,Bb5b4][%mdl 32]} 22. Nc1 $2 {[%emt 0:03:49][%mdl 8192] [#]} (22. h4 $1 $14 {stays ahead.}) 22... b4 $1 $19 {[%emt 0:00:00]} ({Inferior is} 22... exf4 23. Qf3 $15) 23. Nb3 {[%emt 0:01:03]} Qd8 {[%emt 0:00:00]} 24. Na4 {[%emt 0:00:37]} exf4 {[%emt 0:00:00][%cal Be5f4,Bf4f3][%mdl 32]} 25. h4 {[%emt 0:01:19]} Ne5 {[%emt 0:00:00] Against Qf3} 26. Qc2 {[%emt 0:03:08]} Qc7 {[%emt 0:00:00]} 27. Rdf1 {[%emt 0:02:12]} Bd7 {[%emt 0:00:00]} 28. Nd2 {[%emt 0:01:01]} f3 {[%emt 0:00:00]} 29. b3 {[%emt 0:02:04]} (29. Nxf3 $142 Bxa4 30. Qxa4) 29... Bxa4 {[%emt 0:00:00]} 30. bxa4 {[%emt 0:00:18]} Qe7 {[%emt 0:00:00] 0x0.001ab44fa1dddp-1022s more active pieces.} 31. Rf2 {[%emt 0:04:53]} Ra7 {[%emt 0:00:00]} 32. Re1 {[%emt 0:00:22]} Rb7 {[%emt 0:00:00]} 33. Nxf3 {[%emt 0:00:34]} Nxf3 {[%emt 0:00:00]} (33... Qd7 $17 {[%cal Ob4b3] ...b3! is the strong threat.} 34. Nxe5 Rxe5) 34. Rxf3 $11 {[%emt 0:00:16]} Qe5 {[%emt 0:00:00]} 35. Rf6 $2 {[%emt 0:02:45][%mdl 8192] [#]} (35. a5 $11) 35... h6 $2 {[%emt 0:00:00]} (35... b3 $1 $19 {[%cal Rb3c2]} 36. axb3 Qg3 37. Rxf7+ Rxf7) 36. Qb2 $15 {[%emt 0:02:12] Black must now prevent Rxd6.} hxg5 {[%emt 0:00:00]} 37. hxg5 {[%emt 0:00:44]} Rd7 {[%emt 0:00:00]} 38. Ka1 {[%emt 0:02:57]} (38. Rf4 $1 $15) 38... Qxb2+ $19 {[%emt 0:00:00]} 39. Kxb2 {[%emt 0:00:06][%cal Oe4e5][%mdl 4096] Endgame KRR-KRR} Re5 {[%emt 0:00:00]} 40. Rf4 {[%emt 0:02:54]} Rxg5 {[%emt 0:00:00]} 41. Rh4 {[%emt 0:00:30]} Rg2+ {[%emt 0:00:00]} 42. Kb3 {[%emt 0:01:40]} Rg3+ {[%emt 0:00:00]} 43. Kb2 {[%emt 0:00:04]} Re7 {[%emt 0:00:00]} 44. Reh1 {[%emt 0:01:28]} Rg2+ {[%emt 0:00:00]} 45. Kb3 {[%emt 0:00:56]} Rf2 {[%emt 0:00:00]} 46. Rh7+ {[%emt 0:01:02]} Kf6 {[%emt 0:00:00]} 47. Re1 {[%emt 0:00:26]} Rf3+ {[%emt 0:00:00]} 48. Kb2 {[%emt 0:00:14]} Ke5 {[%emt 0:00:00]} ({Wrong is} 48... Rf4 $2 49. Rh8 $19) 49. Rh8 {[%emt 0:00:26]} Ra3 {[%emt 0:00:00]} 50. Rf1 {[%emt 0:02:42]} Rxa4 {[%emt 0:00:00] Black is clearly winning.} 51. Rh7 {[%emt 0:00:22]} Kd4 {[%emt 0:00:00]} 52. Rhxf7 {[%emt 0:01:34]} Rxe4 {[%emt 0:00:00]} 53. R7f4 {[%emt 0:01:39]} g5 {[%emt 0:00:55]} 54. Rxe4+ {[%emt 0:01:38]} Kxe4 {[%emt 0:00:14] KR-KR} 55. Rg1 {[%emt 0:01:18]} Kf5 {[%emt 0:01:58]} 56. Rf1+ {[%emt 0:00:24]} Kg6 {[%emt 0:00:10]} 57. Re1 {[%emt 0:00:11]} Ra3 {[%emt 0:01:31]} 58. Re6+ {[%emt 0:00:14]} Kf5 {[%emt 0:01:34]} 59. Rxd6 {[%emt 0:00:14]} Rc3 {[%emt 0:00:37]} 60. Rxa6 {[%emt 0:01:00]} Rxc4 {[%emt 0:00:08] Strongly threatening ...g4.} 61. Rc6 {[%emt 0:02:33]} g4 {[%emt 0:01:00][%cal Bg5g4,Bg4g3][%mdl 32] Threatens to win with ...g3.} 62. Kb3 {[%emt 0:00:49]} Rc3+ {[%emt 0:00:42]} 63. Ka4 {[%emt 0:00:47]} g3 {[%emt 0:00:24]} 64. Rc8 {[%emt 0:01:11]} Ke5 {[%emt 0:01:11] Weighted Error Value: White=0.59/Black=0.39} 0-1